Workbook

Sheet Instructions

Sheet Meta data_sheet
A1: Ambient Monitoring Station | B1: Details | D1: Ambient Monitoring Results | E1: Details
A2: Location | B2: Breeza | D2: PM2.5 monitoring start (dd/mm/yyyy hh:mm) | E2: 2019-12-01
A3: Easting | B3: =VLOOKUP($B$2,'Meta data_lookup'!$A$2:$D$5,2,FALSE) -> 237993 | D3: PM2.5 monitoring end | E3: 2020-01-01
A4: Northing | B4: =VLOOKUP($B$2,'Meta data_lookup'!$A$2:$D$5,3,FALSE) -> 6542606 | D4: PM2.5 monitoring period (h) | E4: =(E3-E2)*24 -> 744
A5: Site elevation (m) | B5: =VLOOKUP($B$2,'Meta data_lookup'!$A$2:$D$5,4,FALSE) -> ND | D5: Number of valid PM2.5 results | E5: =COUNTIF('Raw data_sheet'!G2:G745,"Valid") -> 714
A6: Description of surrounding land use | B6: Agriculture | D6: Proportion of valid PM2.5 results (%) | E6: =E5/E4 -> 0.9596774194
A7: Typical sources impacting on the site | B7: Agriculture/Gravel roads | D7: PM10 monitoring start (dd/mm/yyyy hh:mm) | E7: 2019-12-01
A8: Site compliance with AS/NZS 3580.1.1:2007 | B8: Yes | D8: PM10 monitoring end | E8: 2020-01-01
A9: PM2.5 method compliance with AS/NZS 3580.9.13:2013 | B9: Yes | D9: PM10 monitoring period (h) | E9: =(E8-E7)*24 -> 744
A10: PM2.5 instrument make | B10: Thermo | D10: Number of valid PM10 results | E10: =COUNTIF('Raw data_sheet'!J2:J745,"Valid") -> 714
A11: PM2.5 instrument model | B11: 1405DF | D11: Proportion of valid PM10 results (%) | E11: =E10/E9 -> 0.9596774194
A12: PM2.5 instrument intake height (m) | B12: 3.5
A13: PM10 method compliance with AS 3580.9.8-2008 | B13: No*
A14: PM10 instrument make | B14: Thermo
A15: PM10 instrument model | B15: 1405DF
A16: PM10 instrument intake height (m) | B16: 3.5
A17: *The 1405DF TEOM used at this site measures PM10 indirectly rather than directly. The unit does however meet the intent of AS 3580.9.8-2008, and this method has been accredited by the USEPA. It is considered scientifically robust and is used extensively throughout NSW with EPA's knowledge and informal acceptance.

Sheet Meta data_lookup
A1: Location | B1: Easting | C1: Northing | D1: Site elevation (m)
A2: Maules Creek | B2: 225302 | C2: 6623037 | D2: ND
A3: Breeza | B3: 237993 | C3: 6542606 | D3: ND
A4: Will-gai | B4: 231804 | C4: 6596392 | D4: ND
A5: Werris Creek | B5: 276783 | C5: 6528734 | D5: ND

Sheet Raw data_sheet
A1: Year | B1: Month | C1: Day | D1: Hour | E1: Date and time | F1: PM2.5_hourly | G1: PM2.5_Data_Status | H1: PM2.5_24hr_rolling_average | I1: PM10_hourly | J1: PM10_Data_Status | K1: PM10_24hr_rolling_average | L1: Cause of data invalidity, if applicable | M1: Detailed comments | N1: PM2.5_hourly_valid_plot | O1: PM2.5_24hr_rolling_ave_valid_plot | P1: PM10_hourly_valid_plot | Q1: PM10_24hr_rolling_ave_valid_plot | R1: PM10_hourly_valid_plot_series | S1: PM10_24hr_rolling_average_valid_plot_series | T1: PM2.5_hourly_valid_plot_series | U1: PM2.5_24hr_rolling_average_valid_plot_series
A2: 2019 | B2: 12 | C2: 1 | D2: 0 | E2: =DATE(A2,B2,C2)+TIME(D2,0,0) -> 43800 | F2: 17.6189 | G2: Valid | H2: 12.6 | I2: 200.4729 | J2: Valid | K2: 81.9 | N2: =IF(G2="Valid", F2, NA()) -> 17.6189 | O2: =IF(G2="Valid", H2, NA()) -> 12.6 | P2: =IF(J2="Valid", I2, NA()) -> 200.4729 | Q2: =IF(J2="Valid", K2, NA()) -> 81.9 | R2: 200.4729 | S2: 81.9 | T2: 17.6189 | U2: 12.6
A3: =A2 -> 2019 | B3: =B2 -> 12 | C3: =C2 -> 1 | D3: =IF(D2=23,0,D2+1) -> 1 | E3: =E2+0.0416666666666666 -> 43800.04167 | F3: 22.9155 | G3: Valid | H3: 13.26 | I3: 182.6085 | J3: Valid | K3: 88.04 | N3: 22.9155 | O3: 13.26 | P3: 182.6085 | Q3: 88.04 | R3: 182.6085 | S3: 88.04 | T3: 22.9155 | U3: 13.26
A4: =A3 -> 2019 | B4: =B3 -> 12 | C4: 1 | D4: =IF(D3=23,0,D3+1) -> 2 | E4: =E3+0.0416666666666666 -> 43800.08333 | F4: 17.7099 | G4: Valid | H4: 13.92 | I4: 157.3689 | J4: Valid | K4: 94.06 | N4: 17.7099 | O4: 13.92 | P4: 157.3689 | Q4: 94.06 | R4: 157.3689 | S4: 94.06 | T4: 17.7099 | U4: 13.92
A5: 2019 | B5: 12 | C5: 1 | D5: 3 | E5: 43800.125 | F5: 16.9116 | G5: Valid | H5: 14 | I5: 129.3486 | J5: Valid | K5: 97.64 | N5: 16.9116 | O5: 14 | P5: 129.3486 | Q5: 97.64 | R5: 129.3486 | S5: 97.64 | T5: 16.9116 | U5: 14
A6: 2019 | B6: 12 | C6: 1 | D6: 4 | E6: 43800.16667 | F6: 16.636 | G6: Valid | H6: 13.77 | I6: 99.8242 | J6: Valid | K6: 99.28 | N6: 16.636 | O6: 13.77 | P6: 99.8242 | Q6: 99.28 | R6: 99.8242 | S6: 99.28 | T6: 16.636 | U6: 13.77
A7: 2019 | B7: 12 | C7: 1 | D7: 5 | E7: 43800.20833 | F7: 14.8826 | G7: Valid | H7: 14.12 | I7: 90.5676 | J7: Valid | K7: 100.78 | N7: 14.8826 | O7: 14.12 | P7: 90.5676 | Q7: 100.78 | R7: 90.5676 | S7: 100.78 | T7: 14.8826 | U7: 14.12
A8: 2019 | B8: 12 | C8: 1 | D8: 6 | E8: 43800.25 | F8: 13.7578 | G8: Valid | H8: 14.29 | I8: 82.2851 | J8: Valid | K8: 101.93 | N8: 13.7578 | O8: 14.29 | P8: 82.2851 | Q8: 101.93 | R8: 82.2851 | S8: 101.93 | T8: 13.7578 | U8: 14.29
A9: 2019 | B9: 12 | C9: 1 | D9: 7 | E9: 43800.29167 | F9: 6.33855 | G9: Valid | H9: 13.8 | I9: 59.70045 | J9: Valid | K9: 101.84 | N9: 6.33855 | O9: 13.8 | P9: 59.70045 | Q9: 101.84 | R9: 59.70045 | S9: 101.84 | T9: 6.33855 | U9: 13.8
A10: 2019 | B10: 12 | C10: 1 | D10: 8 | E10: 43800.33333 | F10: 3.92075 | G10: Valid | H10: 13.63 | I10: 49.74495 | J10: Valid | K10: 101.93 | N10: 3.92075 | O10: 13.63 | P10: 49.74495 | Q10: 101.93 | R10: 49.74495 | S10: 101.93 | T10: 3.92075 | U10: 13.63
A11: 2019 | B11: 12 | C11: 1 | D11: 9 | E11: 43800.375 | F11: 5.04106 | G11: Valid | H11: 13.12 | I11: 53.72076 | J11: Valid | K11: 101.27 | N11: 5.04106 | O11: 13.12 | P11: 53.72076 | Q11: 101.27 | R11: 53.72076 | S11: 101.27 | T11: 5.04106 | U11: 13.12
A12: 2019 | B12: 12 | C12: 1 | D12: 10 | E12: 43800.41667 | F12: 6.77657 | G12: Valid | H12: 13.17 | I12: 49.06167 | J12: Valid | K12: 100.83 | N12: 6.77657 | O12: 13.17 | P12: 49.06167 | Q12: 100.83 | R12: 49.06167 | S12: 100.83 | T12: 6.77657 | U12: 13.17
A13: 2019 | B13: 12 | C13: 1 | D13: 11 | E13: 43800.45833 | F13: 8.86382 | G13: Valid | H13: 11.86 | I13: 52.31732 | J13: Valid | K13: 75.87 | N13: 8.86382 | O13: 11.86 | P13: 52.31732 | Q13: 75.87 | R13: 52.31732 | S13: 75.87 | T13: 8.86382 | U13: 11.86
A14: 2019 | B14: 12 | C14: 1 | D14: 12 | E14: 43800.5 | F14: 10.8674 | G14: Valid | H14: 11.37 | I14: 47.2377 | J14: Valid | K14: 68.35 | N14: 10.8674 | O14: 11.37 | P14: 47.2377 | Q14: 68.35 | R14: 47.2377 | S14: 68.35 | T14: 10.8674 | U14: 11.37
A15: 2019 | B15: 12 | C15: 1 | D15: 13 | E15: 43800.54167 | F15: 9.76011 | G15: Valid | H15: 11.49 | I15: 42.37381 | J15: Valid | K15: 68.67 | N15: 9.76011 | O15: 11.49 | P15: 42.37381 | Q15: 68.67 | R15: 42.37381 | S15: 68.67 | T15: 9.76011 | U15: 11.49
A16: 2019 | B16: 12 | C16: 1 | D16: 14 | E16: 43800.58333 | F16: 7.57264 | G16: Valid | H16: 11.4 | I16: 58.78434 | J16: Valid | K16: 70.27 | N16: 7.57264 | O16: 11.4 | P16: 58.78434 | Q16: 70.27 | R16: 58.78434 | S16: 70.27 | T16: 7.57264 | U16: 11.4
A17: 2019 | B17: 12 | C17: 1 | D17: 15 | E17: 43800.625 | F17: 19.6273 | G17: Valid | H17: 11.61 | I17: 216.4153 | J17: Valid | K17: 78.19 | N17: 19.6273 | O17: 11.61 | P17: 216.4153 | Q17: 78.19 | R17: 216.4153 | S17: 78.19 | T17: 19.6273 | U17: 11.61
A18: 2019 | B18: 12 | C18: 1 | D18: 16 | E18: 43800.66667 | F18: 10.2552 | G18: Valid | H18: 11.59 | I18: 185.7052 | J18: Valid | K18: 84.52 | N18: 10.2552 | O18: 11.59 | P18: 185.7052 | Q18: 84.52 | R18: 185.7052 | S18: 84.52 | T18: 10.2552 | U18: 11.59
A19: 2019 | B19: 12 | C19: 1 | D19: 17 | E19: 43800.70833 | F19: 13.5492 | G19: Valid | H19: 11.52 | I19: 136.2772 | J19: Valid | K19: 88.91 | N19: 13.5492 | O19: 11.52 | P19: 136.2772 | Q19: 88.91 | R19: 136.2772 | S19: 88.91 | T19: 13.5492 | U19: 11.52
A20: 2019 | B20: 12 | C20: 1 | D20: 18 | E20: 43800.75 | F20: 8.03003 | G20: Valid | H20: 11.89 | I20: 54.56503 | J20: Valid | K20: 90.47 | N20: 8.03003 | O20: 11.89 | P20: 54.56503 | Q20: 90.47 | R20: 54.56503 | S20: 90.47 | T20: 8.03003 | U20: 11.89
A21: 2019 | B21: 12 | C21: 1 | D21: 19 | E21: 43800.79167 | F21: 2.6863 | G21: Valid | H21: 11.61 | I21: 37.6679 | J21: Valid | K21: 89.73 | N21: 2.6863 | O21: 11.61 | P21: 37.6679 | Q21: 89.73 | R21: 37.6679 | S21: 89.73 | T21: 2.6863 | U21: 11.61
A22: 2019 | B22: 12 | C22: 1 | D22: 20 | E22: 43800.83333 | F22: 5.76716 | G22: Valid | H22: 11.36 | I22: 37.23616 | J22: Valid | K22: 89.55 | N22: 5.76716 | O22: 11.36 | P22: 37.23616 | Q22: 89.55 | R22: 37.23616 | S22: 89.55 | T22: 5.76716 | U22: 11.36
A23: 2019 | B23: 12 | C23: 1 | D23: 21 | E23: 43800.875 | F23: 1.77807 | G23: Valid | H23: 11.05 | I23: 29.69167 | J23: Valid | K23: 89.18 | N23: 1.77807 | O23: 11.05 | P23: 29.69167 | Q23: 89.18 | R23: 29.69167 | S23: 89.18 | T23: 1.77807 | U23: 11.05
A24: 2019 | B24: 12 | C24: 1 | D24: 22 | E24: 43800.91667 | F24: -0.22416 | G24: Valid | H24: 10.55 | I24: 22.28984 | J24: Valid | K24: 88.49 | N24: -0.22416 | O24: 10.55 | P24: 22.28984 | Q24: 88.49 | R24: 22.28984 | S24: 88.49 | T24: -0.22416 | U24: 10.55
A25: 2019 | B25: =B24 -> 12 | C25: =C24 -> 1 | D25: 23 | E25: 43800.95833 | F25: 15.153 | G25: Valid | H25: 10.67 | I25: 201.422 | J25: Valid | K25: 94.86 | N25: 15.153 | O25: 10.67 | P25: 201.422 | Q25: 94.86 | R25: 201.422 | S25: 94.86 | T25: 15.153 | U25: 10.67
A26: 2019 | B26: =B25 -> 12 | C26: =C2+1 -> 2 | D26: 0 | E26: 43801 | F26: 20.5791 | G26: Valid | H26: 10.8 | I26: 203.2971 | J26: Valid | K26: 94.98 | N26: 20.5791 | O26: 10.8 | P26: 203.2971 | Q26: 94.98 | R26: 203.2971 | S26: 94.98 | T26: 20.5791 | U26: 10.8
A27: 2019 | B27: =B26 -> 12 | C27: =C3+1 -> 2 | D27: 1 | E27: 43801.04167 | F27: 15.6856 | G27: Valid | H27: 10.5 | I27: 116.2456 | J27: Valid | K27: 92.21 | N27: 15.6856 | O27: 10.5 | P27: 116.2456 | Q27: 92.21 | R27: 116.2456 | S27: 92.21 | T27: 15.6856 | U27: 10.5
A28: 2019 | B28: 12 | C28: 2 | D28: 2 | E28: 43801.08333 | F28: 10.7889 | G28: Valid | H28: 10.21 | I28: 72.5207 | J28: Valid | K28: 88.68 | N28: 10.7889 | O28: 10.21 | P28: 72.5207 | Q28: 88.68 | R28: 72.5207 | S28: 88.68 | T28: 10.7889 | U28: 10.21
A29: 2019 | B29: 12 | C29: 2 | D29: 3 | E29: 43801.125 | F29: 7.56828 | G29: Valid | H29: 9.82 | I29: 69.90418 | J29: Valid | K29: 86.2 | N29: 7.56828 | O29: 9.82 | P29: 69.90418 | Q29: 86.2 | R29: 69.90418 | S29: 86.2 | T29: 7.56828 | U29: 9.82
A30: 2019 | B30: 12 | C30: 2 | D30: 4 | E30: 43801.16667 | F30: 10.1545 | G30: Valid | H30: 9.55 | I30: 50.2448 | J30: Valid | K30: 84.14 | N30: 10.1545 | O30: 9.55 | P30: 50.2448 | Q30: 84.14 | R30: 50.2448 | S30: 84.14 | T30: 10.1545 | U30: 9.55
A31: 2019 | B31: 12 | C31: 2 | D31: 5 | E31: 43801.20833 | F31: 5.25164 | G31: Valid | H31: 9.15 | I31: 37.86054 | J31: Valid | K31: 81.94 | N31: 5.25164 | O31: 9.15 | P31: 37.86054 | Q31: 81.94 | R31: 37.86054 | S31: 81.94 | T31: 5.25164 | U31: 9.15
A32: 2019 | B32: 12 | C32: 2 | D32: 6 | E32: 43801.25 | F32: 3.8327 | G32: Valid | H32: 8.73 | I32: 35.8288 | J32: Valid | K32: 80 | N32: 3.8327 | O32: 8.73 | P32: 35.8288 | Q32: 80 | R32: 35.8288 | S32: 80 | T32: 3.8327 | U32: 8.73
A33: 2019 | B33: 12 | C33: 2 | D33: 7 | E33: 43801.29167 | F33: 10.0362 | G33: Valid | H33: 8.89 | I33: 43.1928 | J33: Valid | K33: 79.32 | N33: 10.0362 | O33: 8.89 | P33: 43.1928 | Q33: 79.32 | R33: 43.1928 | S33: 79.32 | T33: 10.0362 | U33: 8.89
A34: 2019 | B34: 12 | C34: 2 | D34: 8 | E34: 43801.33333 | F34: -0.204416 | G34: Valid | H34: 8.72 | I34: 49.812584 | J34: Valid | K34: 79.32 | N34: -0.204416 | O34: 8.72 | P34: 49.812584 | Q34: 79.32 | R34: 49.812584 | S34: 79.32 | T34: -0.204416 | U34: 8.72
A35: 2019 | B35: 12 | C35: 2 | D35: 9 | E35: 43801.375 | F35: =NA() ->  | G35: Invalid | H35: =NA() ->  | I35: =NA() ->  | J35: Invalid | K35: =NA() ->  | L35: Pump Failure | M35: High negative removed
A36: 2019 | B36: 12 | C36: 2 | D36: 10 | E36: 43801.41667 | F36: 9.59365 | G36: Valid | H36: 9 | I36: 37.37525 | J36: Valid | K36: 76.83 | N36: 9.59365 | O36: 9 | P36: 37.37525 | Q36: 76.83 | R36: 37.37525 | S36: 76.83 | T36: 9.59365 | U36: 9
A37: 2019 | B37: 12 | C37: 2 | D37: 11 | E37: 43801.45833 | F37: 5.70671 | G37: Valid | H37: 8.86 | I37: 69.26641 | J37: Valid | K37: 77.54 | N37: 5.70671 | O37: 8.86 | P37: 69.26641 | Q37: 77.54 | R37: 69.26641 | S37: 77.54 | T37: 5.70671 | U37: 8.86
A38: 2019 | B38: 12 | C38: 2 | D38: 12 | E38: 43801.5 | F38: 13.5217 | G38: Valid | H38: 8.98 | I38: 38.6562 | J38: Valid | K38: 77.18 | N38: 13.5217 | O38: 8.98 | P38: 38.6562 | Q38: 77.18 | R38: 38.6562 | S38: 77.18 | T38: 13.5217 | U38: 8.98
A39: 2019 | B39: 12 | C39: 2 | D39: 13 | E39: 43801.54167 | F39: 12.1573 | G39: Valid | H39: 9.08 | I39: 45.4936 | J39: Valid | K39: 77.31 | N39: 12.1573 | O39: 9.08 | P39: 45.4936 | Q39: 77.31 | R39: 45.4936 | S39: 77.31 | T39: 12.1573 | U39: 9.08
A40: 2019 | B40: 12 | C40: 2 | D40: 14 | E40: 43801.58333 | F40: 11.3398 | G40: Valid | H40: 9.24 | I40: 249.0908 | J40: Valid | K40: 85.24 | N40: 11.3398 | O40: 9.24 | P40: 249.0908 | Q40: 85.24 | R40: 249.0908 | S40: 85.24 | T40: 11.3398 | U40: 9.24
A41: 2019 | B41: 12 | C41: 2 | D41: 15 | E41: 43801.625 | F41: 13.4786 | G41: Valid | H41: 8.98 | I41: 269.1006 | J41: Valid | K41: 87.43 | N41: 13.4786 | O41: 8.98 | P41: 269.1006 | Q41: 87.43 | R41: 269.1006 | S41: 87.43 | T41: 13.4786 | U41: 8.98
A42: 2019 | B42: 12 | C42: 2 | D42: 16 | E42: 43801.66667 | F42: 28.5731 | G42: Valid | H42: 9.77 | I42: 458.7111 | J42: Valid | K42: 98.81 | N42: 28.5731 | O42: 9.77 | P42: 458.7111 | Q42: 98.81 | R42: 458.7111 | S42: 98.81 | T42: 28.5731 | U42: 9.77
A43: 2019 | B43: 12 | C43: 2 | D43: 17 | E43: 43801.70833 | F43: 17.3487 | G43: Valid | H43: 9.94 | I43: 246.6747 | J43: Valid | K43: 103.41 | N43: 17.3487 | O43: 9.94 | P43: 246.6747 | Q43: 103.41 | R43: 246.6747 | S43: 103.41 | T43: 17.3487 | U43: 9.94
A44: 2019 | B44: 12 | C44: 2 | D44: 18 | E44: 43801.75 | F44: =NA() ->  | G44: Invalid | H44: =NA() ->  | I44: =NA() ->  | J44: Invalid | K44: =NA() ->  | L44: Calibration Error | M44: Annual calibration, zero test data excluded.
A45: 2019 | B45: 12 | C45: 2 | D45: 19 | E45: 43801.79167 | F45: =NA() ->  | G45: Invalid | H45: =NA() ->  | I45: =NA() ->  | J45: Invalid | K45: =NA() ->  | L45: Calibration Error | M45: Annual calibration, zero test data excluded.
A46: 2019 | B46: 12 | C46: 2 | D46: 20 | E46: 43801.83333 | F46: =NA() ->  | G46: Invalid | H46: =NA() ->  | I46: =NA() ->  | J46: Invalid | K46: =NA() ->  | L46: Calibration Error | M46: Annual calibration, zero test data excluded.
A47: 2019 | B47: 12 | C47: 2 | D47: 21 | E47: 43801.875 | F47: =NA() ->  | G47: Invalid | H47: =NA() ->  | I47: =NA() ->  | J47: Invalid | K47: =NA() ->  | L47: Calibration Error | M47: Annual calibration, zero test data excluded.
A48: 2019 | B48: 12 | C48: 2 | D48: 22 | E48: 43801.91667 | F48: =NA() ->  | G48: Invalid | H48: =NA() ->  | I48: =NA() ->  | J48: Invalid | K48: =NA() ->  | L48: Calibration Error | M48: Annual calibration, zero test data excluded.
A49: 2019 | B49: 12 | C49: 2 | D49: 23 | E49: 43801.95833 | F49: =NA() ->  | G49: Invalid | H49: =NA() ->  | I49: =NA() ->  | J49: Invalid | K49: =NA() ->  | L49: Calibration Error | M49: Annual calibration, zero test data excluded. 24Hr average lost due to data interruption.
A50: 2019 | B50: 12 | C50: 3 | D50: 0 | E50: 43802 | F50: =NA() ->  | G50: Invalid | H50: =NA() ->  | I50: =NA() ->  | J50: Invalid | K50: =NA() ->  | L50: Calibration Error | M50: Annual calibration, zero test data excluded. 24Hr average lost due to data interruption.
A51: 2019 | B51: 12 | C51: 3 | D51: 1 | E51: 43802.04167 | F51: =NA() ->  | G51: Invalid | H51: =NA() ->  | I51: =NA() ->  | J51: Invalid | K51: =NA() ->  | L51: Calibration Error | M51: Annual calibration, zero test data excluded. 24Hr average lost due to data interruption.
A52: 2019 | B52: 12 | C52: 3 | D52: 2 | E52: 43802.08333 | F52: =NA() ->  | G52: Invalid | H52: =NA() ->  | I52: =NA() ->  | J52: Invalid | K52: =NA() ->  | L52: Calibration Error | M52: Annual calibration, zero test data excluded. 24Hr average lost due to data interruption.
A53: 2019 | B53: 12 | C53: 3 | D53: 3 | E53: 43802.125 | F53: =NA() ->  | G53: Invalid | H53: =NA() ->  | I53: =NA() ->  | J53: Invalid | K53: =NA() ->  | L53: Calibration Error | M53: Annual calibration, zero test data excluded. 24Hr average lost due to data interruption.
A54: 2019 | B54: 12 | C54: 3 | D54: 4 | E54: 43802.16667 | F54: =NA() ->  | G54: Invalid | H54: =NA() ->  | I54: =NA() ->  | J54: Invalid | K54: =NA() ->  | L54: Calibration Error | M54: Annual calibration, zero test data excluded. 24Hr average lost due to data interruption.
A55: 2019 | B55: 12 | C55: 3 | D55: 5 | E55: 43802.20833 | F55: =NA() ->  | G55: Invalid | H55: =NA() ->  | I55: =NA() ->  | J55: Invalid | K55: =NA() ->  | L55: Calibration Error | M55: Annual calibration, zero test data excluded. 24Hr average lost due to data interruption.
A56: 2019 | B56: 12 | C56: 3 | D56: 6 | E56: 43802.25 | F56: =NA() ->  | G56: Invalid | H56: =NA() ->  | I56: =NA() ->  | J56: Invalid | K56: =NA() ->  | L56: Calibration Error | M56: Annual calibration, zero test data excluded. 24Hr average lost due to data interruption.
A57: 2019 | B57: 12 | C57: 3 | D57: 7 | E57: 43802.29167 | F57: =NA() ->  | G57: Invalid | H57: =NA() ->  | I57: =NA() ->  | J57: Invalid | K57: =NA() ->  | L57: Calibration Error | M57: Annual calibration, zero test data excluded. 24Hr average lost due to data interruption.
A58: 2019 | B58: 12 | C58: 3 | D58: 8 | E58: 43802.33333 | F58: =NA() ->  | G58: Invalid | H58: =NA() ->  | I58: =NA() ->  | J58: Invalid | K58: =NA() ->  | L58: Calibration Error | M58: Annual calibration, zero test data excluded. 24Hr average lost due to data interruption.
A59: 2019 | B59: 12 | C59: 3 | D59: 9 | E59: 43802.375 | F59: =NA() ->  | G59: Invalid | H59: =NA() ->  | I59: =NA() ->  | J59: Invalid | K59: =NA() ->  | L59: Calibration Error | M59: Annual calibration, zero test data excluded. 24Hr average lost due to data interruption.
A60: 2019 | B60: 12 | C60: 3 | D60: 10 | E60: 43802.41667 | F60: 5.60603 | G60: Valid | H60: =NA() ->  | I60: 36.24143 | J60: Valid | K60: =NA() ->  | M60: 24Hr average lost due to data interruption | N60: 5.60603 | P60: 36.24143 | R60: 36.24143 | T60: 5.60603
A61: 2019 | B61: 12 | C61: 3 | D61: 11 | E61: 43802.45833 | F61: 8.32306 | G61: Valid | H61: =NA() ->  | I61: 35.48106 | J61: Valid | K61: =NA() ->  | M61: 24Hr average lost due to data interruption | N61: 8.32306 | P61: 35.48106 | R61: 35.48106 | T61: 8.32306
A62: 2019 | B62: 12 | C62: 3 | D62: 12 | E62: 43802.5 | F62: 6.03743 | G62: Valid | H62: =NA() ->  | I62: 30.89533 | J62: Valid | K62: =NA() ->  | M62: 24Hr average lost due to data interruption | N62: 6.03743 | P62: 30.89533 | R62: 30.89533 | T62: 6.03743
A63: 2019 | B63: 12 | C63: 3 | D63: 13 | E63: 43802.54167 | F63: 8.02071 | G63: Valid | H63: =NA() ->  | I63: 33.77351 | J63: Valid | K63: =NA() ->  | M63: 24Hr average lost due to data interruption | N63: 8.02071 | P63: 33.77351 | R63: 33.77351 | T63: 8.02071
A64: 2019 | B64: 12 | C64: 3 | D64: 14 | E64: 43802.58333 | F64: 4.53217 | G64: Valid | H64: =NA() ->  | I64: 35.18727 | J64: Valid | K64: =NA() ->  | M64: 24Hr average lost due to data interruption | N64: 4.53217 | P64: 35.18727 | R64: 35.18727 | T64: 4.53217
A65: 2019 | B65: 12 | C65: 3 | D65: 15 | E65: 43802.625 | F65: 4.82019 | G65: Valid | H65: =NA() ->  | I65: 29.54529 | J65: Valid | K65: =NA() ->  | M65: 24Hr average lost due to data interruption | N65: 4.82019 | P65: 29.54529 | R65: 29.54529 | T65: 4.82019
A66: 2019 | B66: 12 | C66: 3 | D66: 16 | E66: 43802.66667 | F66: 6.3496 | G66: Valid | H66: =NA() ->  | I66: 27.47 | J66: Valid | K66: =NA() ->  | M66: 24Hr average lost due to data interruption | N66: =IF(G66="Valid", F66, NA()) -> 6.3496 | O66: =IF(G66="Valid", H66, NA()) ->  | P66: =IF(J66="Valid", I66, NA()) -> 27.47 | Q66: =IF(J66="Valid", K66, NA()) ->  | R66: 27.47 | T66: 6.3496
A67: 2019 | B67: 12 | C67: 3 | D67: 17 | E67: 43802.70833 | F67: 3.51278 | G67: Valid | H67: =NA() ->  | I67: 19.25498 | J67: Valid | K67: =NA() ->  | M67: 24Hr average lost due to data interruption | N67: 3.51278 | P67: 19.25498 | R67: 19.25498 | T67: 3.51278
A68: =A67 -> 2019 | B68: 12 | C68: 3 | D68: =IF(D67=23,0,D67+1) -> 18 | E68: =E67+0.0416666666666666 -> 43802.75 | F68: 5.54921 | G68: Valid | H68: =NA() ->  | I68: 20.31011 | J68: Valid | K68: =NA() ->  | M68: 24Hr average lost due to data interruption | N68: 5.54921 | P68: 20.31011 | R68: 20.31011 | T68: 5.54921
A69: 2019 | B69: 12 | C69: 3 | D69: 19 | E69: 43802.79167 | F69: 6.88755 | G69: Valid | H69: =NA() ->  | I69: 23.13865 | J69: Valid | K69: =NA() ->  | M69: 24Hr average lost due to data interruption | N69: 6.88755 | P69: 23.13865 | R69: 23.13865 | T69: 6.88755
A70: 2019 | B70: 12 | C70: 3 | D70: 20 | E70: 43802.83333 | F70: 2.41595 | G70: Valid | H70: =NA() ->  | I70: 16.67045 | J70: Valid | K70: =NA() ->  | M70: 24Hr average lost due to data interruption | N70: 2.41595 | P70: 16.67045 | R70: 16.67045 | T70: 2.41595
A71: 2019 | B71: 12 | C71: 3 | D71: 21 | E71: 43802.875 | F71: 0.646956 | G71: Valid | H71: =NA() ->  | I71: 16.386456 | J71: Valid | K71: =NA() ->  | M71: 24Hr average lost due to data interruption | N71: 0.646956 | P71: 16.386456 | R71: 16.386456 | T71: 0.646956
A72: 2019 | B72: 12 | C72: 3 | D72: 22 | E72: 43802.91667 | F72: 2.54358 | G72: Valid | H72: =NA() ->  | I72: 16.31078 | J72: Valid | K72: =NA() ->  | M72: 24Hr average lost due to data interruption | N72: 2.54358 | P72: 16.31078 | R72: 16.31078 | T72: 2.54358
A73: 2019 | B73: 12 | C73: 3 | D73: 23 | E73: 43802.95833 | F73: 0.705733 | G73: Valid | H73: =NA() ->  | I73: 12.924433 | J73: Valid | K73: =NA() ->  | M73: 24Hr average lost due to data interruption | N73: 0.705733 | P73: 12.924433 | R73: 12.924433 | T73: 0.705733
A74: 2019 | B74: 12 | C74: 4 | D74: 0 | E74: 43803 | F74: 1.50875 | G74: Valid | H74: =NA() ->  | I74: 13.47745 | J74: Valid | K74: =NA() ->  | M74: 24Hr average lost due to data interruption | N74: 1.50875 | P74: 13.47745 | R74: 13.47745 | T74: 1.50875
A75: 2019 | B75: 12 | C75: 4 | D75: 1 | E75: 43803.04167 | F75: 2.09843 | G75: Valid | H75: =NA() ->  | I75: 13.62043 | J75: Valid | K75: =NA() ->  | M75: 24Hr average lost due to data interruption | N75: 2.09843 | P75: 13.62043 | R75: 13.62043 | T75: 2.09843
A76: 2019 | B76: 12 | C76: 4 | D76: 2 | E76: 43803.08333 | F76: -0.780553 | G76: Valid | H76: =NA() ->  | I76: 10.627047 | J76: Valid | K76: =NA() ->  | M76: 24Hr average lost due to data interruption | N76: -0.780553 | P76: 10.627047 | R76: 10.627047 | T76: -0.780553
A77: 2019 | B77: 12 | C77: 4 | D77: 3 | E77: 43803.125 | F77: 1.33266 | G77: Valid | H77: 3.9 | I77: 13.85626 | J77: Valid | K77: 22.51 | N77: 1.33266 | O77: 3.9 | P77: 13.85626 | Q77: 22.51 | R77: 13.85626 | S77: 22.51 | T77: 1.33266 | U77: 3.9
A78: 2019 | B78: 12 | C78: 4 | D78: 4 | E78: 43803.16667 | F78: 3.96575 | G78: Valid | H78: 3.9 | I78: 14.90915 | J78: Valid | K78: 22.11 | N78: 3.96575 | O78: 3.9 | P78: 14.90915 | Q78: 22.11 | R78: 14.90915 | S78: 22.11 | T78: 3.96575 | U78: 3.9
A79: 2019 | B79: 12 | C79: 4 | D79: 5 | E79: 43803.20833 | F79: 8.86939 | G79: Valid | H79: 4.15 | I79: 19.41299 | J79: Valid | K79: 21.97 | N79: 8.86939 | O79: 4.15 | P79: 19.41299 | Q79: 21.97 | R79: 19.41299 | S79: 21.97 | T79: 8.86939 | U79: 4.15
A80: 2019 | B80: 12 | C80: 4 | D80: 6 | E80: 43803.25 | F80: 8.68642 | G80: Valid | H80: 4.36 | I80: 20.96862 | J80: Valid | K80: 21.93 | N80: 8.68642 | O80: 4.36 | P80: 20.96862 | Q80: 21.93 | R80: 20.96862 | S80: 21.93 | T80: 8.68642 | U80: 4.36
A81: 2019 | B81: 12 | C81: 4 | D81: 7 | E81: 43803.29167 | F81: 4.11054 | G81: Valid | H81: 4.35 | I81: 19.37174 | J81: Valid | K81: 21.81 | N81: 4.11054 | O81: 4.35 | P81: 19.37174 | Q81: 21.81 | R81: 19.37174 | S81: 21.81 | T81: 4.11054 | U81: 4.35
A82: 2019 | B82: 12 | C82: 4 | D82: 8 | E82: 43803.33333 | F82: 3.66218 | G82: Valid | H82: 4.32 | I82: 18.21018 | J82: Valid | K82: 21.65 | N82: 3.66218 | O82: 4.32 | P82: 18.21018 | Q82: 21.65 | R82: 18.21018 | S82: 21.65 | T82: 3.66218 | U82: 4.32
A83: 2019 | B83: 12 | C83: 4 | D83: 9 | E83: 43803.375 | F83: 4.84052 | G83: Valid | H83: 4.34 | I83: 18.51232 | J83: Valid | K83: 21.52 | N83: 4.84052 | O83: 4.34 | P83: 18.51232 | Q83: 21.52 | R83: 18.51232 | S83: 21.52 | T83: 4.84052 | U83: 4.34
A84: 2019 | B84: 12 | C84: 4 | D84: 10 | E84: 43803.41667 | F84: 2.21972 | G84: Valid | H84: 4.2 | I84: 15.35192 | J84: Valid | K84: 20.65 | N84: 2.21972 | O84: 4.2 | P84: 15.35192 | Q84: 20.65 | R84: 15.35192 | S84: 20.65 | T84: 2.21972 | U84: 4.2
A85: 2019 | B85: 12 | C85: 4 | D85: 11 | E85: 43803.45833 | F85: 7.35041 | G85: Valid | H85: 4.16 | I85: 17.81321 | J85: Valid | K85: 19.92 | N85: 7.35041 | O85: 4.16 | P85: 17.81321 | Q85: 19.92 | R85: 17.81321 | S85: 19.92 | T85: 7.35041 | U85: 4.16
A86: 2019 | B86: 12 | C86: 4 | D86: 12 | E86: 43803.5 | F86: 0.873008 | G86: Valid | H86: 3.95 | I86: 11.197808 | J86: Valid | K86: 19.1 | N86: 0.873008 | O86: 3.95 | P86: 11.197808 | Q86: 19.1 | R86: 11.197808 | S86: 19.1 | T86: 0.873008 | U86: 3.95
A87: 2019 | B87: 12 | C87: 4 | D87: 13 | E87: 43803.54167 | F87: 5.3794 | G87: Valid | H87: 3.84 | I87: 26.1914 | J87: Valid | K87: 18.78 | N87: 5.3794 | O87: 3.84 | P87: 26.1914 | Q87: 18.78 | R87: 26.1914 | S87: 18.78 | T87: 5.3794 | U87: 3.84
A88: 2019 | B88: 12 | C88: 4 | D88: 14 | E88: 43803.58333 | F88: 6.88074 | G88: Valid | H88: 3.93 | I88: 30.96504 | J88: Valid | K88: 18.6 | N88: 6.88074 | O88: 3.93 | P88: 30.96504 | Q88: 18.6 | R88: 30.96504 | S88: 18.6 | T88: 6.88074 | U88: 3.93
A89: 2019 | B89: 12 | C89: 4 | D89: 15 | E89: 43803.625 | F89: 16.057 | G89: Valid | H89: 4.4 | I89: 41.5891 | J89: Valid | K89: 19.11 | N89: 16.057 | O89: 4.4 | P89: 41.5891 | Q89: 19.11 | R89: 41.5891 | S89: 19.11 | T89: 16.057 | U89: 4.4
A90: 2019 | B90: 12 | C90: 4 | D90: 16 | E90: 43803.66667 | F90: 5.40953 | G90: Valid | H90: 4.36 | I90: 26.00793 | J90: Valid | K90: 19.04 | N90: 5.40953 | O90: 4.36 | P90: 26.00793 | Q90: 19.04 | R90: 26.00793 | S90: 19.04 | T90: 5.40953 | U90: 4.36
A91: 2019 | B91: =B90 -> 12 | C91: =C67+1 -> 4 | D91: 17 | E91: 43803.70833 | F91: 2.82388 | G91: Valid | H91: 4.33 | I91: 28.26118 | J91: Valid | K91: 19.42 | N91: 2.82388 | O91: 4.33 | P91: 28.26118 | Q91: 19.42 | R91: 28.26118 | S91: 19.42 | T91: 2.82388 | U91: 4.33
A92: 2019 | B92: 12 | C92: 4 | D92: 18 | E92: 43803.75 | F92: 3.55351 | G92: Valid | H92: 4.25 | I92: 35.29381 | J92: Valid | K92: 20.04 | N92: 3.55351 | O92: 4.25 | P92: 35.29381 | Q92: 20.04 | R92: 35.29381 | S92: 20.04 | T92: 3.55351 | U92: 4.25
A93: 2019 | B93: 12 | C93: 4 | D93: 19 | E93: 43803.79167 | F93: 4.59406 | G93: Valid | H93: 4.16 | I93: 53.47066 | J93: Valid | K93: 21.31 | N93: 4.59406 | O93: 4.16 | P93: 53.47066 | Q93: 21.31 | R93: 53.47066 | S93: 21.31 | T93: 4.59406 | U93: 4.16
A94: 2019 | B94: 12 | C94: 4 | D94: 20 | E94: 43803.83333 | F94: 7.53472 | G94: Valid | H94: 4.37 | I94: 49.34432 | J94: Valid | K94: 22.67 | N94: 7.53472 | O94: 4.37 | P94: 49.34432 | Q94: 22.67 | R94: 49.34432 | S94: 22.67 | T94: 7.53472 | U94: 4.37
A95: 2019 | B95: 12 | C95: 4 | D95: 21 | E95: 43803.875 | F95: 4.79895 | G95: Valid | H95: 4.54 | I95: 44.21815 | J95: Valid | K95: 23.83 | N95: 4.79895 | O95: 4.54 | P95: 44.21815 | Q95: 23.83 | R95: 44.21815 | S95: 23.83 | T95: 4.79895 | U95: 4.54
A96: 2019 | B96: 12 | C96: 4 | D96: 22 | E96: 43803.91667 | F96: 5.33632 | G96: Valid | H96: 4.66 | I96: 40.15022 | J96: Valid | K96: 24.82 | N96: 5.33632 | O96: 4.66 | P96: 40.15022 | Q96: 24.82 | R96: 40.15022 | S96: 24.82 | T96: 5.33632 | U96: 4.66
A97: 2019 | B97: 12 | C97: 4 | D97: 23 | E97: 43803.95833 | F97: 8.96245 | G97: Valid | H97: 5 | I97: 45.00855 | J97: Valid | K97: 26.16 | N97: 8.96245 | O97: 5 | P97: 45.00855 | Q97: 26.16 | R97: 45.00855 | S97: 26.16 | T97: 8.96245 | U97: 5
A98: 2019 | B98: 12 | C98: 5 | D98: 0 | E98: 43804 | F98: 9.19321 | G98: Valid | H98: 5.32 | I98: 50.71111 | J98: Valid | K98: 27.71 | N98: 9.19321 | O98: 5.32 | P98: 50.71111 | Q98: 27.71 | R98: 50.71111 | S98: 27.71 | T98: 9.19321 | U98: 5.32
A99: 2019 | B99: 12 | C99: 5 | D99: 1 | E99: 43804.04167 | F99: 5.34905 | G99: Valid | H99: 5.46 | I99: 42.61445 | J99: Valid | K99: 28.92 | N99: 5.34905 | O99: 5.46 | P99: 42.61445 | Q99: 28.92 | R99: 42.61445 | S99: 28.92 | T99: 5.34905 | U99: 5.46
A100: 2019 | B100: 12 | C100: 5 | D100: 2 | E100: 43804.08333 | F100: 7.02859 | G100: Valid | H100: 5.78 | I100: 39.43129 | J100: Valid | K100: 30.12 | N100: 7.02859 | O100: 5.78 | P100: 39.43129 | Q100: 30.12 | R100: 39.43129 | S100: 30.12 | T100: 7.02859 | U100: 5.78
A101: 2019 | B101: 12 | C101: 5 | D101: 3 | E101: 43804.125 | F101: 8.02406 | G101: Valid | H101: 6.06 | I101: 35.35956 | J101: Valid | K101: 31.02 | N101: 8.02406 | O101: 6.06 | P101: 35.35956 | Q101: 31.02 | R101: 35.35956 | S101: 31.02 | T101: 8.02406 | U101: 6.06
A102: 2019 | B102: 12 | C102: 5 | D102: 4 | E102: 43804.16667 | F102: 4.93604 | G102: Valid | H102: 6.1 | I102: 31.95244 | J102: Valid | K102: 31.73 | N102: 4.93604 | O102: 6.1 | P102: 31.95244 | Q102: 31.73 | R102: 31.95244 | S102: 31.73 | T102: 4.93604 | U102: 6.1
A103: 2019 | B103: 12 | C103: 5 | D103: 5 | E103: 43804.20833 | F103: 7.16998 | G103: Valid | H103: 6.03 | I103: 34.52048 | J103: Valid | K103: 32.35 | N103: 7.16998 | O103: 6.03 | P103: 34.52048 | Q103: 32.35 | R103: 34.52048 | S103: 32.35 | T103: 7.16998 | U103: 6.03
A104: 2019 | B104: 12 | C104: 5 | D104: 6 | E104: 43804.25 | F104: 7.73658 | G104: Valid | H104: 5.99 | I104: 30.99178 | J104: Valid | K104: 32.77 | N104: 7.73658 | O104: 5.99 | P104: 30.99178 | Q104: 32.77 | R104: 30.99178 | S104: 32.77 | T104: 7.73658 | U104: 5.99
A105: 2019 | B105: 12 | C105: 5 | D105: 7 | E105: 43804.29167 | F105: 2.66529 | G105: Valid | H105: 5.93 | I105: 21.67479 | J105: Valid | K105: 32.87 | N105: 2.66529 | O105: 5.93 | P105: 21.67479 | Q105: 32.87 | R105: 21.67479 | S105: 32.87 | T105: 2.66529 | U105: 5.93
A106: 2019 | B106: 12 | C106: 5 | D106: 8 | E106: 43804.33333 | F106: 5.89731 | G106: Valid | H106: 6.03 | I106: 22.60771 | J106: Valid | K106: 33.05 | N106: 5.89731 | O106: 6.03 | P106: 22.60771 | Q106: 33.05 | R106: 22.60771 | S106: 33.05 | T106: 5.89731 | U106: 6.03
A107: 2019 | B107: 12 | C107: 5 | D107: 9 | E107: 43804.375 | F107: 2.09356 | G107: Valid | H107: 5.91 | I107: 18.47636 | J107: Valid | K107: 33.05 | N107: 2.09356 | O107: 5.91 | P107: 18.47636 | Q107: 33.05 | R107: 18.47636 | S107: 33.05 | T107: 2.09356 | U107: 5.91
A108: 2019 | B108: 12 | C108: 5 | D108: 10 | E108: 43804.41667 | F108: 5.10794 | G108: Valid | H108: 6.03 | I108: 15.56774 | J108: Valid | K108: 33.06 | N108: 5.10794 | O108: 6.03 | P108: 15.56774 | Q108: 33.06 | R108: 15.56774 | S108: 33.06 | T108: 5.10794 | U108: 6.03
A109: 2019 | B109: 12 | C109: 5 | D109: 11 | E109: 43804.45833 | F109: 4.4604 | G109: Valid | H109: 5.91 | I109: 13.83323 | J109: Valid | K109: 32.89 | N109: 4.4604 | O109: 5.91 | P109: 13.83323 | Q109: 32.89 | R109: 13.83323 | S109: 32.89 | T109: 4.4604 | U109: 5.91
A110: 2019 | B110: 12 | C110: 5 | D110: 12 | E110: 43804.5 | F110: 3.28593 | G110: Valid | H110: 6.01 | I110: 11.09829 | J110: Valid | K110: 32.89 | N110: 3.28593 | O110: 6.01 | P110: 11.09829 | Q110: 32.89 | R110: 11.09829 | S110: 32.89 | T110: 3.28593 | U110: 6.01
A111: 2019 | B111: 12 | C111: 5 | D111: 13 | E111: 43804.54167 | F111: 7.54529 | G111: Valid | H111: 6.1 | I111: 18.85419 | J111: Valid | K111: 32.58 | N111: 7.54529 | O111: 6.1 | P111: 18.85419 | Q111: 32.58 | R111: 18.85419 | S111: 32.58 | T111: 7.54529 | U111: 6.1
A112: 2019 | B112: 12 | C112: 5 | D112: 14 | E112: 43804.58333 | F112: -1.30638 | G112: Valid | H112: 5.76 | I112: 4.92538 | J112: Valid | K112: 31.5 | N112: -1.30638 | O112: 5.76 | P112: 4.92538 | Q112: 31.5 | R112: 4.92538 | S112: 31.5 | T112: -1.30638 | U112: 5.76
A113: 2019 | B113: 12 | C113: 5 | D113: 15 | E113: 43804.625 | F113: 10.8983 | G113: Valid | H113: 5.55 | I113: 22.8143 | J113: Valid | K113: 30.72 | N113: 10.8983 | O113: 5.55 | P113: 22.8143 | Q113: 30.72 | R113: 22.8143 | S113: 30.72 | T113: 10.8983 | U113: 5.55
A114: 2019 | B114: 12 | C114: 5 | D114: 16 | E114: 43804.66667 | F114: 8.26956 | G114: Valid | H114: 5.66 | I114: 26.13386 | J114: Valid | K114: 30.72 | N114: 8.26956 | O114: 5.66 | P114: 26.13386 | Q114: 30.72 | R114: 26.13386 | S114: 30.72 | T114: 8.26956 | U114: 5.66
A115: 2019 | B115: 12 | C115: 5 | D115: 17 | E115: 43804.70833 | F115: 9.63964 | G115: Valid | H115: 5.95 | I115: 21.87134 | J115: Valid | K115: 30.46 | N115: 9.63964 | O115: 5.95 | P115: 21.87134 | Q115: 30.46 | R115: 21.87134 | S115: 30.46 | T115: 9.63964 | U115: 5.95
A116: 2019 | B116: 12 | C116: 5 | D116: 18 | E116: 43804.75 | F116: 0.411118 | G116: Valid | H116: 5.82 | I116: 16.471918 | J116: Valid | K116: 29.67 | N116: 0.411118 | O116: 5.82 | P116: 16.471918 | Q116: 29.67 | R116: 16.471918 | S116: 29.67 | T116: 0.411118 | U116: 5.82
A117: 2019 | B117: 12 | C117: 5 | D117: 19 | E117: 43804.79167 | F117: 5.53916 | G117: Valid | H117: 5.86 | I117: 25.49366 | J117: Valid | K117: 28.51 | N117: 5.53916 | O117: 5.86 | P117: 25.49366 | Q117: 28.51 | R117: 25.49366 | S117: 28.51 | T117: 5.53916 | U117: 5.86
A118: 2019 | B118: 12 | C118: 5 | D118: 20 | E118: 43804.83333 | F118: 4.866 | G118: Valid | H118: 5.75 | I118: 27.8972 | J118: Valid | K118: 27.61 | N118: 4.866 | O118: 5.75 | P118: 27.8972 | Q118: 27.61 | R118: 27.8972 | S118: 27.61 | T118: 4.866 | U118: 5.75
A119: 2019 | B119: 12 | C119: 5 | D119: 21 | E119: 43804.875 | F119: 7.16403 | G119: Valid | H119: 5.84 | I119: 29.48423 | J119: Valid | K119: 27 | N119: 7.16403 | O119: 5.84 | P119: 29.48423 | Q119: 27 | R119: 29.48423 | S119: 27 | T119: 7.16403 | U119: 5.84
A120: 2019 | B120: 12 | C120: 5 | D120: 22 | E120: 43804.91667 | F120: 2.8187 | G120: Valid | H120: 5.74 | I120: 22.5554 | J120: Valid | K120: 26.26 | N120: 2.8187 | O120: 5.74 | P120: 22.5554 | Q120: 26.26 | R120: 22.5554 | S120: 26.26 | T120: 2.8187 | U120: 5.74
A121: 2019 | B121: 12 | C121: 5 | D121: 23 | E121: 43804.95833 | F121: 1.97615 | G121: Valid | H121: 5.45 | I121: 19.03585 | J121: Valid | K121: 25.18 | N121: 1.97615 | O121: 5.45 | P121: 19.03585 | Q121: 25.18 | R121: 19.03585 | S121: 25.18 | T121: 1.97615 | U121: 5.45
A122: 2019 | B122: 12 | C122: 6 | D122: 0 | E122: 43805 | F122: 6.14814 | G122: Valid | H122: 5.32 | I122: 25.07204 | J122: Valid | K122: 24.11 | N122: 6.14814 | O122: 5.32 | P122: 25.07204 | Q122: 24.11 | R122: 25.07204 | S122: 24.11 | T122: 6.14814 | U122: 5.32
A123: 2019 | B123: 12 | C123: 6 | D123: 1 | E123: 43805.04167 | F123: 6.54537 | G123: Valid | H123: 5.37 | I123: 24.99837 | J123: Valid | K123: 23.38 | N123: 6.54537 | O123: 5.37 | P123: 24.99837 | Q123: 23.38 | R123: 24.99837 | S123: 23.38 | T123: 6.54537 | U123: 5.37
A124: 2019 | B124: 12 | C124: 6 | D124: 2 | E124: 43805.08333 | F124: 4.63894 | G124: Valid | H124: 5.27 | I124: 21.74124 | J124: Valid | K124: 22.64 | N124: 4.63894 | O124: 5.27 | P124: 21.74124 | Q124: 22.64 | R124: 21.74124 | S124: 22.64 | T124: 4.63894 | U124: 5.27
A125: 2019 | B125: 12 | C125: 6 | D125: 3 | E125: 43805.125 | F125: -0.01517 | G125: Valid | H125: 4.94 | I125: 16.39473 | J125: Valid | K125: 21.85 | N125: -0.01517 | O125: 4.94 | P125: 16.39473 | Q125: 21.85 | R125: 16.39473 | S125: 21.85 | T125: -0.01517 | U125: 4.94
A126: 2019 | B126: 12 | C126: 6 | D126: 4 | E126: 43805.16667 | F126: 0.866658 | G126: Valid | H126: 4.77 | I126: 15.675458 | J126: Valid | K126: 21.17 | N126: 0.866658 | O126: 4.77 | P126: 15.675458 | Q126: 21.17 | R126: 15.675458 | S126: 21.17 | T126: 0.866658 | U126: 4.77
A127: 2019 | B127: 12 | C127: 6 | D127: 5 | E127: 43805.20833 | F127: 2.14266 | G127: Valid | H127: 4.56 | I127: 17.85016 | J127: Valid | K127: 20.48 | N127: 2.14266 | O127: 4.56 | P127: 17.85016 | Q127: 20.48 | R127: 17.85016 | S127: 20.48 | T127: 2.14266 | U127: 4.56
A128: 2019 | B128: 12 | C128: 6 | D128: 6 | E128: 43805.25 | F128: 7.11747 | G128: Valid | H128: 4.53 | I128: 21.72277 | J128: Valid | K128: 20.09 | N128: 7.11747 | O128: 4.53 | P128: 21.72277 | Q128: 20.09 | R128: 21.72277 | S128: 20.09 | T128: 7.11747 | U128: 4.53
A129: 2019 | B129: 12 | C129: 6 | D129: 7 | E129: 43805.29167 | F129: 7.73531 | G129: Valid | H129: 4.74 | I129: 29.16231 | J129: Valid | K129: 20.41 | N129: 7.73531 | O129: 4.74 | P129: 29.16231 | Q129: 20.41 | R129: 29.16231 | S129: 20.41 | T129: 7.73531 | U129: 4.74
A130: 2019 | B130: 12 | C130: 6 | D130: 8 | E130: 43805.33333 | F130: 5.05635 | G130: Valid | H130: 4.71 | I130: 34.30535 | J130: Valid | K130: 20.89 | N130: =IF(G130="Valid", F130, NA()) -> 5.05635 | O130: =IF(G130="Valid", H130, NA()) -> 4.71 | P130: =IF(J130="Valid", I130, NA()) -> 34.30535 | Q130: =IF(J130="Valid", K130, NA()) -> 20.89 | R130: 34.30535 | S130: 20.89 | T130: 5.05635 | U130: 4.71
A131: 2019 | B131: 12 | C131: 6 | D131: 9 | E131: 43805.375 | F131: 6.31178 | G131: Valid | H131: 4.88 | I131: 49.77448 | J131: Valid | K131: 22.2 | N131: 6.31178 | O131: 4.88 | P131: 49.77448 | Q131: 22.2 | R131: 49.77448 | S131: 22.2 | T131: 6.31178 | U131: 4.88
A132: =A131 -> 2019 | B132: 12 | C132: 6 | D132: =IF(D131=23,0,D131+1) -> 10 | E132: =E131+0.0416666666666666 -> 43805.41667 | F132: 10.0068 | G132: Valid | H132: 5.09 | I132: 45.6991 | J132: Valid | K132: 23.45 | N132: 10.0068 | O132: 5.09 | P132: 45.6991 | Q132: 23.45 | R132: 45.6991 | S132: 23.45 | T132: 10.0068 | U132: 5.09
A133: 2019 | B133: 12 | C133: 6 | D133: 11 | E133: 43805.45833 | F133: 6.94747 | G133: Valid | H133: 5.19 | I133: 39.45077 | J133: Valid | K133: 24.52 | N133: 6.94747 | O133: 5.19 | P133: 39.45077 | Q133: 24.52 | R133: 39.45077 | S133: 24.52 | T133: 6.94747 | U133: 5.19
A134: 2019 | B134: 12 | C134: 6 | D134: 12 | E134: 43805.5 | F134: 3.84905 | G134: Valid | H134: 5.22 | I134: 57.99215 | J134: Valid | K134: 26.47 | N134: 3.84905 | O134: 5.22 | P134: 57.99215 | Q134: 26.47 | R134: 57.99215 | S134: 26.47 | T134: 3.84905 | U134: 5.22
A135: 2019 | B135: 12 | C135: 6 | D135: 13 | E135: 43805.54167 | F135: 14.4513 | G135: Valid | H135: 5.5 | I135: 77.4181 | J135: Valid | K135: 28.91 | N135: 14.4513 | O135: 5.5 | P135: 77.4181 | Q135: 28.91 | R135: 77.4181 | S135: 28.91 | T135: 14.4513 | U135: 5.5
A136: 2019 | B136: 12 | C136: 6 | D136: 14 | E136: 43805.58333 | F136: =NA() ->  | G136: Invalid | H136: =NA() ->  | I136: =NA() ->  | J136: Invalid | K136: =NA() ->  | L136: Power Failure | M136: Machine outage
A137: 2019 | B137: 12 | C137: 6 | D137: 15 | E137: 43805.625 | F137: =NA() ->  | G137: Invalid | H137: =NA() ->  | I137: =NA() ->  | J137: Invalid | K137: =NA() ->  | L137: Power Failure | M137: Machine outage
A138: 2019 | B138: 12 | C138: 6 | D138: 16 | E138: 43805.66667 | F138: =NA() ->  | G138: Invalid | H138: =NA() ->  | I138: =NA() ->  | J138: Invalid | K138: =NA() ->  | L138: Power Failure | M138: Machine outage
A139: 2019 | B139: 12 | C139: 6 | D139: 17 | E139: 43805.70833 | F139: =NA() ->  | G139: Invalid | H139: =NA() ->  | I139: =NA() ->  | J139: Invalid | K139: =NA() ->  | L139: Power Failure | M139: Machine outage
A140: 2019 | B140: 12 | C140: 6 | D140: 18 | E140: 43805.75 | F140: 10.2556 | G140: Valid | H140: 5.72 | I140: 75.3423 | J140: Valid | K140: 33.85 | N140: 10.2556 | O140: 5.72 | P140: 75.3423 | Q140: 33.85 | R140: 75.3423 | S140: 33.85 | T140: 10.2556 | U140: 5.72
A141: 2019 | B141: 12 | C141: 6 | D141: 19 | E141: 43805.79167 | F141: 14.1043 | G141: Valid | H141: 6.15 | I141: 75.3762 | J141: Valid | K141: 36.35 | N141: 14.1043 | O141: 6.15 | P141: 75.3762 | Q141: 36.35 | R141: 75.3762 | S141: 36.35 | T141: 14.1043 | U141: 6.15
A142: 2019 | B142: 12 | C142: 6 | D142: 20 | E142: 43805.83333 | F142: 9.55244 | G142: Valid | H142: 6.38 | I142: 67.08714 | J142: Valid | K142: 38.31 | N142: 9.55244 | O142: 6.38 | P142: 67.08714 | Q142: 38.31 | R142: 67.08714 | S142: 38.31 | T142: 9.55244 | U142: 6.38
A143: 2019 | B143: 12 | C143: 6 | D143: 21 | E143: 43805.875 | F143: 9.53698 | G143: Valid | H143: 6.5 | I143: 68.71458 | J143: Valid | K143: 40.27 | N143: 9.53698 | O143: 6.5 | P143: 68.71458 | Q143: 40.27 | R143: 68.71458 | S143: 40.27 | T143: 9.53698 | U143: 6.5
A144: 2019 | B144: 12 | C144: 6 | D144: 22 | E144: 43805.91667 | F144: 11.1768 | G144: Valid | H144: 6.92 | I144: 60.1081 | J144: Valid | K144: 42.15 | N144: 11.1768 | O144: 6.92 | P144: 60.1081 | Q144: 42.15 | R144: 60.1081 | S144: 42.15 | T144: 11.1768 | U144: 6.92
A145: 2019 | B145: 12 | C145: 6 | D145: 23 | E145: 43805.95833 | F145: 6.54195 | G145: Valid | H145: 7.15 | I145: 36.23695 | J145: Valid | K145: 43.01 | N145: 6.54195 | O145: 7.15 | P145: 36.23695 | Q145: 43.01 | R145: 36.23695 | S145: 43.01 | T145: 6.54195 | U145: 7.15
A146: 2019 | B146: 12 | C146: 7 | D146: 0 | E146: 43806 | F146: 7.92185 | G146: Valid | H146: 7.24 | I146: 36.77185 | J146: Valid | K146: 43.59 | N146: 7.92185 | O146: 7.24 | P146: 36.77185 | Q146: 43.59 | R146: 36.77185 | S146: 43.59 | T146: 7.92185 | U146: 7.24
A147: 2019 | B147: 12 | C147: 7 | D147: 1 | E147: 43806.04167 | F147: 6.62375 | G147: Valid | H147: 7.24 | I147: 33.65855 | J147: Valid | K147: 44.02 | N147: 6.62375 | O147: 7.24 | P147: 33.65855 | Q147: 44.02 | R147: 33.65855 | S147: 44.02 | T147: 6.62375 | U147: 7.24
A148: 2019 | B148: 12 | C148: 7 | D148: 2 | E148: 43806.08333 | F148: 6.9018 | G148: Valid | H148: 7.35 | I148: 29.4839 | J148: Valid | K148: 44.41 | N148: 6.9018 | O148: 7.35 | P148: 29.4839 | Q148: 44.41 | R148: 29.4839 | S148: 44.41 | T148: 6.9018 | U148: 7.35
A149: 2019 | B149: 12 | C149: 7 | D149: 3 | E149: 43806.125 | F149: 2.32315 | G149: Valid | H149: 7.47 | I149: 22.65035 | J149: Valid | K149: 44.72 | N149: 2.32315 | O149: 7.47 | P149: 22.65035 | Q149: 44.72 | R149: 22.65035 | S149: 44.72 | T149: 2.32315 | U149: 7.47
A150: 2019 | B150: 12 | C150: 7 | D150: 4 | E150: 43806.16667 | F150: 1.14778 | G150: Valid | H150: 7.49 | I150: 21.20008 | J150: Valid | K150: 45 | N150: 1.14778 | O150: 7.49 | P150: 21.20008 | Q150: 45 | R150: 21.20008 | S150: 45 | T150: 1.14778 | U150: 7.49
A151: 2019 | B151: 12 | C151: 7 | D151: 5 | E151: 43806.20833 | F151: 5.15708 | G151: Valid | H151: 7.64 | I151: 28.44198 | J151: Valid | K151: 45.53 | N151: 5.15708 | O151: 7.64 | P151: 28.44198 | Q151: 45.53 | R151: 28.44198 | S151: 45.53 | T151: 5.15708 | U151: 7.64
A152: 2019 | B152: 12 | C152: 7 | D152: 6 | E152: 43806.25 | F152: 1.70244 | G152: Valid | H152: 7.37 | I152: 23.31834 | J152: Valid | K152: 45.61 | N152: 1.70244 | O152: 7.37 | P152: 23.31834 | Q152: 45.61 | R152: 23.31834 | S152: 45.61 | T152: 1.70244 | U152: 7.37
A153: 2019 | B153: 12 | C153: 7 | D153: 7 | E153: 43806.29167 | F153: 6.31609 | G153: Valid | H153: 7.29 | I153: 26.79399 | J153: Valid | K153: 45.49 | N153: 6.31609 | O153: 7.29 | P153: 26.79399 | Q153: 45.49 | R153: 26.79399 | S153: 45.49 | T153: 6.31609 | U153: 7.29
A154: 2019 | B154: 12 | C154: 7 | D154: 8 | E154: 43806.33333 | F154: 6.78855 | G154: Valid | H154: 7.38 | I154: 28.41015 | J154: Valid | K154: 45.2 | N154: 6.78855 | O154: 7.38 | P154: 28.41015 | Q154: 45.2 | R154: 28.41015 | S154: 45.2 | T154: 6.78855 | U154: 7.38
A155: 2019 | B155: =B154 -> 12 | C155: =C131+1 -> 7 | D155: 9 | E155: 43806.375 | F155: 15.6585 | G155: Valid | H155: 7.85 | I155: 33.1388 | J155: Valid | K155: 44.36 | N155: 15.6585 | O155: 7.85 | P155: 33.1388 | Q155: 44.36 | R155: 33.1388 | S155: 44.36 | T155: 15.6585 | U155: 7.85
A156: 2019 | B156: 12 | C156: 7 | D156: 10 | E156: 43806.41667 | F156: 9.25555 | G156: Valid | H156: 7.81 | I156: 22.75275 | J156: Valid | K156: 43.22 | N156: 9.25555 | O156: 7.81 | P156: 22.75275 | Q156: 43.22 | R156: 22.75275 | S156: 43.22 | T156: 9.25555 | U156: 7.81
A157: 2019 | B157: 12 | C157: 7 | D157: 11 | E157: 43806.45833 | F157: 12.9092 | G157: Valid | H157: 8.11 | I157: 26.3826 | J157: Valid | K157: 42.56 | N157: 12.9092 | O157: 8.11 | P157: 26.3826 | Q157: 42.56 | R157: 26.3826 | S157: 42.56 | T157: 12.9092 | U157: 8.11
A158: 2019 | B158: 12 | C158: 7 | D158: 12 | E158: 43806.5 | F158: 7.58607 | G158: Valid | H158: 8.3 | I158: 17.53352 | J158: Valid | K158: 40.54 | N158: 7.58607 | O158: 8.3 | P158: 17.53352 | Q158: 40.54 | R158: 17.53352 | S158: 40.54 | T158: 7.58607 | U158: 8.3
A159: 2019 | B159: 12 | C159: 7 | D159: 13 | E159: 43806.54167 | F159: 0.751943 | G159: Valid | H159: 7.61 | I159: 10.651743 | J159: Valid | K159: 37.2 | N159: 0.751943 | O159: 7.61 | P159: 10.651743 | Q159: 37.2 | R159: 10.651743 | S159: 37.2 | T159: 0.751943 | U159: 7.61
A160: 2019 | B160: 12 | C160: 7 | D160: 14 | E160: 43806.58333 | F160: 5.50411 | G160: Valid | H160: 7.51 | I160: 14.71918 | J160: Valid | K160: 36.13 | N160: 5.50411 | O160: 7.51 | P160: 14.71918 | Q160: 36.13 | R160: 14.71918 | S160: 36.13 | T160: 5.50411 | U160: 7.51
A161: 2019 | B161: 12 | C161: 7 | D161: 15 | E161: 43806.625 | F161: 6.68074 | G161: Valid | H161: 7.47 | I161: 14.91895 | J161: Valid | K161: 35.17 | N161: 6.68074 | O161: 7.47 | P161: 14.91895 | Q161: 35.17 | R161: 14.91895 | S161: 35.17 | T161: 6.68074 | U161: 7.47
A162: 2019 | B162: 12 | C162: 7 | D162: 16 | E162: 43806.66667 | F162: 8.40341 | G162: Valid | H162: 7.51 | I162: 20.19721 | J162: Valid | K162: 34.52 | N162: 8.40341 | O162: 7.51 | P162: 20.19721 | Q162: 34.52 | R162: 20.19721 | S162: 34.52 | T162: 8.40341 | U162: 7.51
A163: 2019 | B163: 12 | C163: 7 | D163: 17 | E163: 43806.70833 | F163: 4.95428 | G163: Valid | H163: 7.41 | I163: 18.94128 | J163: Valid | K163: 33.87 | N163: 4.95428 | O163: 7.41 | P163: 18.94128 | Q163: 33.87 | R163: 18.94128 | S163: 33.87 | T163: 4.95428 | U163: 7.41
A164: 2019 | B164: 12 | C164: 7 | D164: 18 | E164: 43806.75 | F164: 6.66661 | G164: Valid | H164: 7.26 | I164: 16.03043 | J164: Valid | K164: 31.4 | N164: 6.66661 | O164: 7.26 | P164: 16.03043 | Q164: 31.4 | R164: 16.03043 | S164: 31.4 | T164: 6.66661 | U164: 7.26
A165: 2019 | B165: 12 | C165: 7 | D165: 19 | E165: 43806.79167 | F165: 4.32929 | G165: Valid | H165: 6.85 | I165: 12.07066 | J165: Valid | K165: 28.76 | N165: 4.32929 | O165: 6.85 | P165: 12.07066 | Q165: 28.76 | R165: 12.07066 | S165: 28.76 | T165: 4.32929 | U165: 6.85
A166: 2019 | B166: 12 | C166: 7 | D166: 20 | E166: 43806.83333 | F166: 6.89454 | G166: Valid | H166: 6.74 | I166: 19.51654 | J166: Valid | K166: 26.78 | N166: 6.89454 | O166: 6.74 | P166: 19.51654 | Q166: 26.78 | R166: 19.51654 | S166: 26.78 | T166: 6.89454 | U166: 6.74
A167: 2019 | B167: 12 | C167: 7 | D167: 21 | E167: 43806.875 | F167: 4.78412 | G167: Valid | H167: 6.54 | I167: 14.56638 | J167: Valid | K167: 24.52 | N167: 4.78412 | O167: 6.54 | P167: 14.56638 | Q167: 24.52 | R167: 14.56638 | S167: 24.52 | T167: 4.78412 | U167: 6.54
A168: 2019 | B168: 12 | C168: 7 | D168: 22 | E168: 43806.91667 | F168: 1.65842 | G168: Valid | H168: 6.14 | I168: 11.33405 | J168: Valid | K168: 22.49 | N168: 1.65842 | O168: 6.14 | P168: 11.33405 | Q168: 22.49 | R168: 11.33405 | S168: 22.49 | T168: 1.65842 | U168: 6.14
A169: 2019 | B169: 12 | C169: 7 | D169: 23 | E169: 43806.95833 | F169: 4.7665 | G169: Valid | H169: 6.07 | I169: 19.791 | J169: Valid | K169: 21.8 | N169: 4.7665 | O169: 6.07 | P169: 19.791 | Q169: 21.8 | R169: 19.791 | S169: 21.8 | T169: 4.7665 | U169: 6.07
A170: 2019 | B170: 12 | C170: 8 | D170: 0 | E170: 43807 | F170: 3.152 | G170: Valid | H170: 5.87 | I170: 18.5472 | J170: Valid | K170: 21.04 | N170: 3.152 | O170: 5.87 | P170: 18.5472 | Q170: 21.04 | R170: 18.5472 | S170: 21.04 | T170: 3.152 | U170: 5.87
A171: 2019 | B171: 12 | C171: 8 | D171: 1 | E171: 43807.04167 | F171: 5.15258 | G171: Valid | H171: 5.81 | I171: 21.54168 | J171: Valid | K171: 20.54 | N171: 5.15258 | O171: 5.81 | P171: 21.54168 | Q171: 20.54 | R171: 21.54168 | S171: 20.54 | T171: 5.15258 | U171: 5.81
A172: 2019 | B172: 12 | C172: 8 | D172: 2 | E172: 43807.08333 | F172: 40.3919 | G172: Valid | H172: 7.21 | I172: 66.3471 | J172: Valid | K172: 22.07 | N172: 40.3919 | O172: 7.21 | P172: 66.3471 | Q172: 22.07 | R172: 66.3471 | S172: 22.07 | T172: 40.3919 | U172: 7.21
A173: 2019 | B173: 12 | C173: 8 | D173: 3 | E173: 43807.125 | F173: 47.7842 | G173: Valid | H173: 9.1 | I173: 72.2472 | J173: Valid | K173: 24.14 | N173: 47.7842 | O173: 9.1 | P173: 72.2472 | Q173: 24.14 | R173: 72.2472 | S173: 24.14 | T173: 47.7842 | U173: 9.1
A174: 2019 | B174: 12 | C174: 8 | D174: 4 | E174: 43807.16667 | F174: 52.3913 | G174: Valid | H174: 11.23 | I174: 75.5539 | J174: Valid | K174: 26.41 | N174: 52.3913 | O174: 11.23 | P174: 75.5539 | Q174: 26.41 | R174: 75.5539 | S174: 26.41 | T174: 52.3913 | U174: 11.23
A175: 2019 | B175: 12 | C175: 8 | D175: 5 | E175: 43807.20833 | F175: 55.0924 | G175: Valid | H175: 13.32 | I175: 75.2684 | J175: Valid | K175: 28.36 | N175: 55.0924 | O175: 13.32 | P175: 75.2684 | Q175: 28.36 | R175: 75.2684 | S175: 28.36 | T175: 55.0924 | U175: 13.32
A176: 2019 | B176: 12 | C176: 8 | D176: 6 | E176: 43807.25 | F176: 59.1706 | G176: Valid | H176: 15.71 | I176: 79.8998 | J176: Valid | K176: 30.71 | N176: 59.1706 | O176: 15.71 | P176: 79.8998 | Q176: 30.71 | R176: 79.8998 | S176: 30.71 | T176: 59.1706 | U176: 15.71
A177: 2019 | B177: 12 | C177: 8 | D177: 7 | E177: 43807.29167 | F177: 54.7487 | G177: Valid | H177: 17.73 | I177: 75.9768 | J177: Valid | K177: 32.76 | N177: 54.7487 | O177: 17.73 | P177: 75.9768 | Q177: 32.76 | R177: 75.9768 | S177: 32.76 | T177: 54.7487 | U177: 17.73
A178: 2019 | B178: 12 | C178: 8 | D178: 8 | E178: 43807.33333 | F178: 67.4013 | G178: Valid | H178: 20.25 | I178: 86.369 | J178: Valid | K178: 35.18 | N178: 67.4013 | O178: 20.25 | P178: 86.369 | Q178: 35.18 | R178: 86.369 | S178: 35.18 | T178: 67.4013 | U178: 20.25
A179: 2019 | B179: 12 | C179: 8 | D179: 9 | E179: 43807.375 | F179: 197.711 | G179: Valid | H179: 27.84 | I179: 220.7033 | J179: Valid | K179: 42.99 | N179: 197.711 | O179: 27.84 | P179: 220.7033 | Q179: 42.99 | R179: 220.7033 | S179: 42.99 | T179: 197.711 | U179: 27.84
A180: 2019 | B180: 12 | C180: 8 | D180: 10 | E180: 43807.41667 | F180: 288.039 | G180: Valid | H180: 39.46 | I180: 311.5064 | J180: Valid | K180: 55.03 | N180: 288.039 | O180: 39.46 | P180: 311.5064 | Q180: 55.03 | R180: 311.5064 | S180: 55.03 | T180: 288.039 | U180: 39.46
A181: 2019 | B181: 12 | C181: 8 | D181: 11 | E181: 43807.45833 | F181: 237.542 | G181: Valid | H181: 48.81 | I181: 257.7683 | J181: Valid | K181: 64.67 | N181: 237.542 | O181: 48.81 | P181: 257.7683 | Q181: 64.67 | R181: 257.7683 | S181: 64.67 | T181: 237.542 | U181: 48.81
A182: 2019 | B182: 12 | C182: 8 | D182: 12 | E182: 43807.5 | F182: 183.839 | G182: Valid | H182: 56.16 | I182: 200.0923 | J182: Valid | K182: 72.27 | N182: 183.839 | O182: 56.16 | P182: 200.0923 | Q182: 72.27 | R182: 200.0923 | S182: 72.27 | T182: 183.839 | U182: 56.16
A183: 2019 | B183: 12 | C183: 8 | D183: 13 | E183: 43807.54167 | F183: 118.535 | G183: Valid | H183: 61.07 | I183: 131.9975 | J183: Valid | K183: 77.33 | N183: 118.535 | O183: 61.07 | P183: 131.9975 | Q183: 77.33 | R183: 131.9975 | S183: 77.33 | T183: 118.535 | U183: 61.07
A184: 2019 | B184: 12 | C184: 8 | D184: 14 | E184: 43807.58333 | F184: 78.6374 | G184: Valid | H184: 64.11 | I184: 88.8753 | J184: Valid | K184: 80.42 | N184: 78.6374 | O184: 64.11 | P184: 88.8753 | Q184: 80.42 | R184: 88.8753 | S184: 80.42 | T184: 78.6374 | U184: 64.11
A185: 2019 | B185: 12 | C185: 8 | D185: 15 | E185: 43807.625 | F185: 77.9482 | G185: Valid | H185: 67.08 | I185: 87.309 | J185: Valid | K185: 83.44 | N185: 77.9482 | O185: 67.08 | P185: 87.309 | Q185: 83.44 | R185: 87.309 | S185: 83.44 | T185: 77.9482 | U185: 67.08
A186: 2019 | B186: 12 | C186: 8 | D186: 16 | E186: 43807.66667 | F186: 72.8066 | G186: Valid | H186: 69.77 | I186: 82.25315 | J186: Valid | K186: 86.02 | N186: 72.8066 | O186: 69.77 | P186: 82.25315 | Q186: 86.02 | R186: 82.25315 | S186: 86.02 | T186: 72.8066 | U186: 69.77
A187: 2019 | B187: 12 | C187: 8 | D187: 17 | E187: 43807.70833 | F187: 70.2899 | G187: Valid | H187: 72.49 | I187: 79.18396 | J187: Valid | K187: 88.53 | N187: 70.2899 | O187: 72.49 | P187: 79.18396 | Q187: 88.53 | R187: 79.18396 | S187: 88.53 | T187: 70.2899 | U187: 72.49
A188: 2019 | B188: 12 | C188: 8 | D188: 18 | E188: 43807.75 | F188: 66.0379 | G188: Valid | H188: 74.96 | I188: 75.09351 | J188: Valid | K188: 90.99 | N188: 66.0379 | O188: 74.96 | P188: 75.09351 | Q188: 90.99 | R188: 75.09351 | S188: 90.99 | T188: 66.0379 | U188: 74.96
A189: 2019 | B189: 12 | C189: 8 | D189: 19 | E189: 43807.79167 | F189: 66.0684 | G189: Valid | H189: 77.54 | I189: 75.9271 | J189: Valid | K189: 93.65 | N189: 66.0684 | O189: 77.54 | P189: 75.9271 | Q189: 93.65 | R189: 75.9271 | S189: 93.65 | T189: 66.0684 | U189: 77.54
A190: 2019 | B190: 12 | C190: 8 | D190: 20 | E190: 43807.83333 | F190: 57.3081 | G190: Valid | H190: 79.64 | I190: 82.8646 | J190: Valid | K190: 96.29 | N190: 57.3081 | O190: 79.64 | P190: 82.8646 | Q190: 96.29 | R190: 82.8646 | S190: 96.29 | T190: 57.3081 | U190: 79.64
A191: 2019 | B191: 12 | C191: 8 | D191: 21 | E191: 43807.875 | F191: 37.5441 | G191: Valid | H191: 81 | I191: 66.2982 | J191: Valid | K191: 98.45 | N191: 37.5441 | O191: 81 | P191: 66.2982 | Q191: 98.45 | R191: 66.2982 | S191: 98.45 | T191: 37.5441 | U191: 81
A192: 2019 | B192: 12 | C192: 8 | D192: 22 | E192: 43807.91667 | F192: 39.6832 | G192: Valid | H192: 82.59 | I192: 61.8877 | J192: Valid | K192: 100.55 | N192: 39.6832 | O192: 82.59 | P192: 61.8877 | Q192: 100.55 | R192: 61.8877 | S192: 100.55 | T192: 39.6832 | U192: 82.59
A193: 2019 | B193: 12 | C193: 8 | D193: 23 | E193: 43807.95833 | F193: 44.1296 | G193: Valid | H193: 84.23 | I193: 63.8559 | J193: Valid | K193: 102.39 | N193: 44.1296 | O193: 84.23 | P193: 63.8559 | Q193: 102.39 | R193: 63.8559 | S193: 102.39 | T193: 44.1296 | U193: 84.23
A194: 2019 | B194: 12 | C194: 9 | D194: 0 | E194: 43808 | F194: 53.4466 | G194: Valid | H194: 86.32 | I194: 72.7484 | J194: Valid | K194: 104.65 | N194: =IF(G194="Valid", F194, NA()) -> 53.4466 | O194: =IF(G194="Valid", H194, NA()) -> 86.32 | P194: =IF(J194="Valid", I194, NA()) -> 72.7484 | Q194: =IF(J194="Valid", K194, NA()) -> 104.65 | R194: 72.7484 | S194: 104.65 | T194: 53.4466 | U194: 86.32
A195: 2019 | B195: 12 | C195: 9 | D195: 1 | E195: 43808.04167 | F195: 41.7458 | G195: Valid | H195: 87.85 | I195: 59.8273 | J195: Valid | K195: 106.24 | N195: 41.7458 | O195: 87.85 | P195: 59.8273 | Q195: 106.24 | R195: 59.8273 | S195: 106.24 | T195: 41.7458 | U195: 87.85
A196: =A195 -> 2019 | B196: 12 | C196: 9 | D196: =IF(D195=23,0,D195+1) -> 2 | E196: =E195+0.0416666666666666 -> 43808.08333 | F196: 42.174 | G196: Valid | H196: 87.92 | I196: 61.4854 | J196: Valid | K196: 106.04 | N196: 42.174 | O196: 87.92 | P196: 61.4854 | Q196: 106.04 | R196: 61.4854 | S196: 106.04 | T196: 42.174 | U196: 87.92
A197: 2019 | B197: 12 | C197: 9 | D197: 3 | E197: 43808.125 | F197: 43.1652 | G197: Valid | H197: 87.73 | I197: 61.0938 | J197: Valid | K197: 105.58 | N197: 43.1652 | O197: 87.73 | P197: 61.0938 | Q197: 105.58 | R197: 61.0938 | S197: 105.58 | T197: 43.1652 | U197: 87.73
A198: 2019 | B198: 12 | C198: 9 | D198: 4 | E198: 43808.16667 | F198: 40.4471 | G198: Valid | H198: 87.23 | I198: 57.8455 | J198: Valid | K198: 104.84 | N198: 40.4471 | O198: 87.23 | P198: 57.8455 | Q198: 104.84 | R198: 57.8455 | S198: 104.84 | T198: 40.4471 | U198: 87.23
A199: 2019 | B199: 12 | C199: 9 | D199: 5 | E199: 43808.20833 | F199: 49.8154 | G199: Valid | H199: 87.01 | I199: 66.0032 | J199: Valid | K199: 104.45 | N199: 49.8154 | O199: 87.01 | P199: 66.0032 | Q199: 104.45 | R199: 66.0032 | S199: 104.45 | T199: 49.8154 | U199: 87.01
A200: 2019 | B200: 12 | C200: 9 | D200: 6 | E200: 43808.25 | F200: 93.7049 | G200: Valid | H200: 88.45 | I200: 111.3907 | J200: Valid | K200: 105.76 | N200: 93.7049 | O200: 88.45 | P200: 111.3907 | Q200: 105.76 | R200: 111.3907 | S200: 105.76 | T200: 93.7049 | U200: 88.45
... 545 more rows

Sheet Raw data_format
A1: Parameter | B1: Format | C1: Comment | D1: Units of measure | E1: Minimum | F1: Maximum
A2: Year | B2: yyyy | C2: 4 integer format | D2: Not applicable | E2: 2015 | F2: Until reporting ceases
A3: Month | B3: mm | C3: 2 integer format | D3: Not applicable | E3: 1 | F3: 12
A4: Day | B4: dd | C4: 2 integer format | D4: Not applicable | E4: 1 | F4: 31
A5: Hour | B5: hh | C5: 2 integer format | D5: Not applicable | E5: 0 | F5: 23
A6: PM10 | B6: 0 | C6: 1 decimal place resolution | D6: µg/m3 | E6: Negative | F6: Instrument specific
A7: PM2.5 | B7: 0 | C7: 2 decimal place resolution | D7: µg/m3 | E7: Negative | F7: Instrument specific
A8: Status | B8: Text | C8: 7 character format | D8: Not applicable | E8: Valid | F8: Invalid
